[Event "Summer Prague Open-A 2022"]
[Site "Prague"]
[Date "2022.08.06"]
[Round "2.3"]
[White "Toure, Vasanth"]
[Black "Mirzoev, Azer"]
[Result "0-1"]
[ECO "B13"]
[WhiteElo "2144"]
[BlackElo "2424"]
[Annotator "TA"]
[PlyCount "102"]
[EventDate "2022.08.05"]
[EventType "swiss"]
[EventCountry "CZE"]
[SourceTitle "playchess.com"]
[Source "ChessBase"]
[SourceQuality "1"]
[TimeControl "40/5400+30:1800+30"]

{[%evp 20,102,3,0,8,9,18,-16,8,6,16,0,0,0,0,0,-1,-12,-16,-27,-12,-26,0,-27,0,-26,-14,-39,-33,-32,-35,-60,-34,-53,-8,-8,-8,-32,-27,-27,-36,-56,-35,-33,-19,-23,-19,-19,-22,-20,-25,-62,-61,-43,-44,-59,-44,-47,-44,-55,-40,-54,-25,-49,-25,-40,-8,-72,-69,-68,-68,-93,-80,-86,-84,-72,-66,-118,-114,-97,-60,-146,-114,-114,-114]} 1. e4 c6 {[%emt 0:04:02]} 2. d4 {[%emt 0:00:53]} d5 {[%emt 0:00:02]} 3. exd5 {[%emt 0:00:08]} cxd5 {[%emt 0:00:06]} 4. Bd3 {[%emt 0:00:06]} Nf6 {[%emt 0:00:16]} 5. h3 {[%emt 0:00:20]} Nc6 {[%emt 0:00:45]} 6. c3 {[%emt 0:00:09]} g6 {[%emt 0:00:19]} 7. Nf3 {[%emt 0:01:17]} Bf5 {[%emt 0:02:38]} 8. O-O {[%emt 0:01:37]} Bxd3 {[%emt 0:00:10]} 9. Qxd3 {[%emt 0:00:04]} Bg7 {[%emt 0:00:10]} 10. Re1 {[%emt 0:01:35]} O-O {[%emt 0:00:16]} 11. Bf4 {[%emt 0:00:38][%cal Bc1f4,Bf4e5,Be5d4][%mdl 32]} e6 {[%emt 0:00:25] B13: Caro-Kann: Exchange Variation and Panov-Botvinnik Attack.} 12. Nbd2 {[%emt 0:02:58]} Qb6 {[%emt 0:02:41]} 13. Ne5 {[%emt 0:09:03]} Rac8 {[%emt 0:04:41] The position is equal.} 14. Rab1 {[%emt 0:27:03]} Rfe8 {[%emt 0:01:55] [#]} 15. Nxc6 $146 {[%emt 0:09:37]} ({Predecessor:} 15. Kh1 a6 16. Qf3 Nxe5 17. Bxe5 Nd7 18. Bxg7 Kxg7 19. Qf4 Qc7 20. Qxc7 Rxc7 21. Kg1 {½-½ (62) Bohatirchuk,F-Tartakower,S Moscow 1925}) 15... bxc6 {[%emt 0:03:05]} 16. Be5 {[%emt 0:06:03]} c5 {[%emt 0:02:35]} 17. dxc5 {[%emt 0:15:38]} Qxc5 {[%emt 0:00:42]} 18. Bd4 {[%emt 0:02:37]} Qc7 {[%emt 0:01:17]} 19. Be5 {[%emt 0:02:39]} Qa5 {[%emt 0:02:48]} 20. a4 {[%emt 0:01:35]} Red8 {[%emt 0:05:43]} 21. Ra1 {[%emt 0:04:48]} (21. b4 $5 {[%cal Rb4a5]} Qxa4 22. Ra1 $11) 21... Ne8 {[%emt 0:02:33][%cal Bf6e8,Be8g7,Bg7f5,Bf5d6][%mdl 32]} 22. Bxg7 {[%emt 0:07:37]} (22. b4 $5 {[%cal Rb4a5]} Qb6 23. a5 $11) 22... Nxg7 {[%emt 0:00:08]} 23. Nf3 {[%emt 0:00:11]} Nf5 {[%emt 0:02:11]} 24. Ne5 {[%emt 0:02:15]} Qc7 {[%emt 0:04:26]} (24... Qc5 {is more complex.} 25. Rac1 f6 26. Ng4 Kf7) 25. Re2 {[%emt 0:00:31]} Nd6 {[%emt 0:02:04]} 26. Qd4 {[%emt 0:00:03]} Ne8 {[%emt 0:12:15]} 27. Ng4 {[%emt 0:00:37] [#] Strongly threatening Nh6+.} h5 {[%emt 0:00:33]} 28. Nf6+ {[%emt 0:00:21]} Nxf6 {[%emt 0:00:05]} 29. Qxf6 {[%emt 0:00:01]} Rd6 {[%emt 0:00:52]} 30. Rd2 {[%emt 0:02:56]} Rb6 {[%emt 0:02:53]} 31. Re1 {[%emt 0:01:08]} Rcb8 {[%emt 0:03:12]} 32. g4 {[%emt 0:00:30]} hxg4 {[%emt 0:10:56]} (32... Rxb2 $2 33. Rxb2 Rxb2 34. gxh5 $18) 33. hxg4 {[%emt 0:00:09]} Qd8 {[%emt 0:01:46]} 34. Qxd8+ {[%emt 0:00:23]} Rxd8 $11 {[%emt 0:00:05][%mdl 4096] Endgame KRR-KRR} 35. Kg2 {[%emt 0:01:49]} Rdb8 {[%emt 0:00:29]} 36. Ree2 {[%emt 0:00:38]} Kg7 37. Kf3 Kf6 {[%emt 0:01:58]} 38. Kg3 {[%emt 0:00:33]} g5 {[%emt 0:05:31]} 39. f3 {[%emt 0:00:25]} Kg6 {[%emt 0:03:06]} 40. Rf2 {[%emt 0:00:45]} R8b7 {[%emt 0:03:58]} 41. Rfe2 {[%emt 0:18:32]} Kf6 {[%emt 0:00:45]} 42. Rf2 {[%emt 0:00:05]} a5 {[%emt 0:05:01]} 43. Rfe2 {[%emt 0:01:05]} (43. f4 $11) 43... Rc6 $17 {[%emt 0:01:19]} 44. Rd4 {[%emt 0:01:54]} Rbc7 {[%emt 0:00:14]} 45. Red2 {[%emt 0:02:34]} Rc4 {[%emt 0:01:16]} 46. Kf2 {[%emt 0:00:21]} Ke5 {[%emt 0:02:47]} 47. Ke3 {[%emt 0:00:16]} Kd6 {[%emt 0:02:27]} 48. Kd3 {[%emt 0:05:59] [#]} (48. R2d3 $15) 48... Rxd4+ $1 {[%emt 0:04:03]} 49. cxd4 {[%emt 0:00:09]} Rc4 {[%emt 0:00:09]} 50. Rc2 {[%emt 0:04:04]} (50. b3 $15 Rc1 51. Rb2) 50... Rxa4 {[%emt 0:00:06] Hoping for ...Rb4.} 51. Rc8 {[%emt 0:00:01]} Rb4 {[%emt 0:00:45] Weighted Error Value: White=0.15 (very precise) /Black=0.11 (very precise)} 0-1

[Event "Summer Prague Open-A 2022"]
[Site "Prague"]
[Date "2022.08.06"]
[Round "2.4"]
[White "Cernousek, Lukas"]
[Black "Sandvik, Thomas"]
[Result "1-0"]
[ECO "E04"]
[WhiteElo "2429"]
[BlackElo "2110"]
[Annotator "TA"]
[PlyCount "81"]
[EventDate "2022.08.05"]
[EventType "swiss"]
[EventCountry "CZE"]
[SourceTitle "playchess.com"]
[Source "ChessBase"]
[SourceQuality "1"]
[TimeControl "40/5400+30:1800+30"]

{[%evp 11,81,18,12,11,25,35,27,25,40,28,31,37,31,35,33,52,112,102,133,121,139,123,129,88,122,53,194,205,254,147,147,149,185,132,159,100,105,106,116,59,133,108,108,108,113,108,111,95,120,120,112,107,146,115,441,257,286,273,348,312,458,447,568,538,1017,987,958,958,891,879,749,725]} 1. Nf3 {[%emt 0:00:05]} Nf6 {[%emt 0:00:06]} 2. d4 {[%emt 0:00:06]} d5 {[%emt 0:00:05][%cal Bd7d5,Bd5c4][%mdl 32]} 3. c4 {[%emt 0:01:30]} e6 {[%emt 0:00:12]} 4. g3 {[%emt 0:02:32]} dxc4 {[%emt 0:00:17]} 5. Bg2 {[%emt 0:00:07]} c6 {[%emt 0:00:22]} 6. Ne5 {[%emt 0:02:06]} Bb4+ {[%emt 0:00:08]} (6... c5 {feels hotter.} 7. Be3 Nd5 8. Nc3 Nxe3 9. fxe3 Nd7) 7. Bd2 {[%emt 0:05:49] E04: Open Catalan: 5 Nf3.} Be7 {[%emt 0:00:02]} 8. e3 {[%emt 0:09:09]} O-O {[%emt 0:03:14]} 9. Nxc4 {[%emt 0:00:24] White has an edge.} Nbd7 {[%emt 0:08:41]} 10. O-O {[%emt 0:09:50]} c5 {[%emt 0:05:17]} 11. dxc5 {[%emt 0:10:57]} Nxc5 {[%emt 0:02:30]} 12. Ba5 {[%emt 0:12:31] [#]} Qxd1 $146 {[%emt 0:11:15]} ({Predecessor:} 12... Qe8 13. Nc3 b6 14. Bxa8 Ba6 15. Bg2 Bxc4 16. Bb4 Bxf1 17. Qxf1 a5 18. Ba3 Ncd7 19. Bxe7 Qxe7 {½-½ (26) Plutarco,F (1643)-Kolasa,P (1950) LSS email 2017}) 13. Rxd1 {[%emt 0:00:02]} Na6 {[%emt 0:18:33]} (13... Bd7 $14) 14. Nc3 $16 {[%emt 0:09:33]} Rb8 {[%emt 0:12:10] [#] And now ...b6 would win.} 15. Nb5 $1 {[%emt 0:03:13]} Bc5 {[%emt 0:02:58]} 16. Ne5 {[%emt 0:00:58] Prevents Bd7.} Nd5 {[%emt 0:07:44]} 17. Rac1 {[%emt 0:13:17]} f6 {[%emt 0:03:35]} 18. Nd3 {[%emt 0:02:14]} ({Don't play} 18. Bxd5 exd5 19. Nd3 b6 $14) (18. Rxd5 $16 exd5 19. Bxd5+ Kh8 20. Nf7+ Kg8 21. Nbd6) 18... Bb6 {[%emt 0:01:08]} (18... Nxe3 $1 $14 19. fxe3 (19. Nxc5 Nxd1 20. Nd3 b6 $11) 19... Bxe3+ 20. Nf2 Bxc1 21. Rxc1 b6) 19. Bxb6 $18 {[%emt 0:01:23]} Nxb6 {[%emt 0:02:20]} 20. Nc5 {[%emt 0:11:04]} (20. Nxa7 $18 {Strongly threatening b4.} e5 21. Nxc8 Rfxc8 22. Rxc8+ Nxc8 23. f4) 20... Nxc5 $16 {[%emt 0:01:21]} 21. Rxc5 {[%emt 0:00:01]} Na4 {[%emt 0:05:54]} 22. Rc7 {[%emt 0:03:19]} ({White should try} 22. Rc2 $18) 22... a6 {[%emt 0:01:25]} 23. Nc3 {[%emt 0:00:56] 0x0.00207b64f3dddp-1022s more active pieces. The black rooks are badly placed.} (23. Nd6 $142) 23... Nxc3 {[%emt 0:01:42]} 24. Rxc3 {[%emt 0:00:45]} e5 {[%emt 0:00:45]} 25. Rc7 {[%emt 0:00:32]} (25. Rd6 $16) 25... Bg4 {[%emt 0:01:06]} ({Black should play} 25... Be6 $1 $14) 26. Rd6 {[%emt 0:00:24]} Rbd8 {[%emt 0:03:25]} 27. Bd5+ {[%emt 0:00:33]} Kh8 {[%emt 0:00:04]} 28. Rxd8 {[%emt 0:00:19]} Rxd8 {[%emt 0:00:01] [#]} 29. Rxb7 $1 {[%emt 0:00:13][%cal Og1g2][%mdl 4096] Endgame KRB-KRB} h6 {[%emt 0:01:19]} (29... h5 30. e4) 30. e4 {[%emt 0:00:04]} Rc8 {[%emt 0:00:46] Threatens to win with ...Bf3.} 31. Kg2 {[%emt 0:00:23] Prevents Bf3+.} Rc5 {[%emt 0:01:49]} 32. Rb6 {[%emt 0:01:33]} Bc8 {[%emt 0:01:11][%mdl 8192]} (32... a5 $16 {is more resistant.} 33. Rb3 Rc2) 33. Kf3 {[%emt 0:00:31]} (33. a4 $142) 33... Kh7 {[%emt 0:00:17]} 34. Ke3 {[%emt 0:00:14]} Kg6 {[%emt 0:00:29]} 35. Kd2 {[%emt 0:00:42]} Kg5 {[%emt 0:00:52]} (35... a5 $142 36. a3 Bd7) 36. f3 $18 {[%emt 0:00:19] White is clearly winning.} h5 {[%emt 0:01:45]} 37. h4+ {[%emt 0:00:03]} Kh6 {[%emt 0:00:38]} 38. b4 {[%emt 0:00:54]} Rc7 {[%emt 0:00:23]} 39. Rc6 {[%emt 0:00:15]} Rxc6 {[%emt 0:00:24]} 40. Bxc6 {[%emt 0:00:01]} Be6 {[%emt 0:00:56]} 41. a4 {[%emt 0:31:35] Weighted Error Value: White=0.21 (precise) /Black=0.48} 1-0

[Event "Summer Prague Open-A 2022"]
[Site "Prague"]
[Date "2022.08.06"]
[Round "2.5"]
[White "Lahlum, Hans Olav"]
[Black "Lalic, Bogdan"]
[Result "1/2-1/2"]
[ECO "E32"]
[WhiteElo "2109"]
[BlackElo "2412"]
[Annotator "TA"]
[PlyCount "31"]
[EventDate "2022.08.05"]
[EventType "swiss"]
[EventCountry "CZE"]
[SourceTitle "playchess.com"]
[Source "ChessBase"]
[SourceQuality "1"]
[TimeControl "40/5400+30:1800+30"]

{[%evp 14,28,-8,-6,13,20,22,1,18,0,0,0,0,0,0,0,44]} 1. d4 {[%emt 0:00:03]} Nf6 {[%emt 0:05:31]} 2. c4 {[%emt 0:00:04]} e6 {[%emt 0:00:06]} 3. Nc3 {[%emt 0:00:08]} Bb4 {[%emt 0:00:09]} 4. Qc2 {[%emt 0:00:11]} b6 {[%emt 0:00:09]} 5. Bg5 {[%emt 0:01:06]} Bb7 {[%emt 0:01:13]} 6. Nf3 {[%emt 0:01:04]} h6 {[%emt 0:00:22]} 7. Bh4 {[%emt 0:02:18]} g5 {[%emt 0:00:36]} 8. Bg3 {[%emt 0:00:15] The position is equal.} Bxc3+ {[%emt 0:07:25] E13: Queen's Indian/Nimzo-Indian hybrid: 4 Nc3 Bb7 5 Bg5 h6 6 Bh4 Bb4.} 9. Qxc3 {[%emt 0:00:24][%cal Od4d5]} Ne4 {[%emt 0:00:05]} 10. Qc2 {[%emt 0:02:00]} d6 {[%emt 0:00:39]} 11. e3 {[%emt 0:00:45][%cal Od4d5]} Nd7 {[%emt 0:00:32]} 12. Bd3 {[%emt 0:01:10]} f5 {[%emt 0:00:54]} 13. d5 {[%emt 0:26:21]} Ndc5 {[%emt 0:01:37]} 14. Nd4 {[%emt 0:04:33]} Qf6 {[%emt 0:03:15] [#] A balanced but interesting game.  Weighted Error Value: White=0.02 (flawless) /Black=0.06 (flawless)} {Predecessor:} 15. Nxe6 $146 Nxe6 16. Bxe4 {½-½ (16) Jianu,V (2401)-Mamedyarov,S (2580) Heraklion 2002} 1/2-1/2

[Event "Summer Prague Open-A 2022"]
[Site "Prague"]
[Date "2022.08.06"]
[Round "2.6"]
[White "Kowalec, Maciej"]
[Black "Lutsko, Artem"]
[Result "0-1"]
[ECO "A46"]
[WhiteElo "2104"]
[BlackElo "2392"]
[Annotator "TA"]
[PlyCount "92"]
[EventDate "2022.08.05"]
[EventType "swiss"]
[EventCountry "CZE"]
[SourceTitle "playchess.com"]
[Source "ChessBase"]
[SourceQuality "1"]
[TimeControl "40/5400+30:1800+30"]

{[%evp 22,92,-12,-22,-14,-23,-22,-27,-34,-32,-41,-84,-87,-122,-119,-118,-121,-154,-152,-151,-148,-192,-192,-179,-185,-220,-210,-242,-234,-224,-87,-84,-83,-133,-77,-120,-120,-133,-132,-135,-135,-167,-167,-164,-164,-161,-152,-268,-265,-253,-165,-319,-314,-288,-267,-372,-387,-381,-373,-381,-372,-372,-357,-350,-327,-423,-410,-416,-408,-408,-393,-307,-307]} 1. d4 {[%emt 0:00:02]} Nf6 {[%emt 0:00:04]} 2. Nf3 {[%emt 0:00:44]} d5 {[%emt 0:00:40]} 3. c4 {[%emt 0:00:32]} e6 {[%emt 0:00:05]} 4. cxd5 {[%emt 0:00:38]} exd5 {[%emt 0:00:29]} 5. Nc3 {[%emt 0:00:28]} c6 {[%emt 0:01:32]} 6. Bg5 {[%emt 0:01:20]} Be7 {[%emt 0:00:26]} 7. e3 {[%emt 0:00:34]} Bf5 {[%emt 0:01:27]} 8. Bd3 {[%emt 0:02:23]} Bxd3 {[%emt 0:00:43]} 9. Qxd3 {[%emt 0:00:02]} O-O {[%emt 0:00:07]} 10. O-O {[%emt 0:00:55]} Nbd7 {[%emt 0:02:12]} 11. Bxf6 {[%emt 0:06:07]} Nxf6 {[%emt 0:01:07]} 12. Rab1 {[%emt 0:01:45]} a5 {[%emt 0:02:41] D35: Queen's Gambit Declined: Exchange Variation.} 13. Rfc1 {[%emt 0:08:45]} Re8 {[%emt 0:03:30] [#]} 14. Ne5 $146 {[%emt 0:06:40]} ({Predecessor:} 14. Nd2 Bd6 15. Na4 Bxh2+ 16. Kxh2 Ng4+ 17. Kg3 h5 18. Qf5 Qd6+ 19. Qf4 Qg6 20. Kf3 {0-1 (27) Jiang,L (1378)-Tsuchie,P (1689) Osasco 2022}) 14... Bd6 {[%emt 0:04:42] Black has an edge.} 15. f4 {[%emt 0:03:18]} Re7 {[%emt 0:04:41]} 16. Qf5 {[%emt 0:03:40]} Ne8 {[%emt 0:04:28]} 17. Nd1 {[%emt 0:06:26]} Bc7 {[%emt 0:02:27]} 18. Qh3 {[%emt 0:05:12]} Nd6 {[%emt 0:06:36]} 19. g4 {[%emt 0:03:44]} Qe8 {[%emt 0:09:35]} 20. b3 {[%emt 0:10:14]} f6 {[%emt 0:09:23]} 21. Nd3 {[%emt 0:02:42]} Qg6 {[%emt 0:00:05]} 22. N3f2 {[%emt 0:05:31]} Rae8 {[%emt 0:10:20] [#] Threatens to win with ...Nf5.} 23. Qg2 {[%emt 0:08:04]} h5 {[%emt 0:10:55]} 24. h3 {[%emt 0:03:30]} Kf7 {[%emt 0:02:24]} 25. Rb2 {[%emt 0:02:40]} Ne4 {[%emt 0:01:13]} (25... Rxe3 $19 {And now ...Re1+ would win.} 26. Nxe3 Rxe3 27. gxh5 Qxg2+ 28. Kxg2 Nf5) 26. Nxe4 $17 {[%emt 0:04:57]} Rxe4 {[%emt 0:00:29]} 27. Rf2 {[%emt 0:02:02]} (27. b4 $142 Rxe3 28. Nxe3 Bxf4 29. Re1 Rxe3 30. Rxe3 Bxe3+ 31. Kh2) 27... Qh6 {[%emt 0:11:54] Black is more active.} (27... hxg4 $142 {Strongly threatening ...g3.} 28. Qxg4 Qxg4+ 29. hxg4 g5) 28. gxh5 {[%emt 0:03:21]} Qxh5 {[%emt 0:00:27]} 29. Qg4 {[%emt 0:00:41]} Qxg4+ {[%emt 0:00:20]} 30. hxg4 {[%emt 0:00:01]} g5 {[%emt 0:00:18]} 31. Nc3 {[%emt 0:03:27]} Rxe3 {[%emt 0:00:04]} 32. fxg5 {[%emt 0:01:09]} Rg3+ {[%emt 0:00:44]} 33. Kf1 {[%emt 0:01:18][%cal Oc3d5]} Bd8 {[%emt 0:02:02]} ({Worse is} 33... Rxg4 34. Nxd5 Bg3 35. Nxf6 (35. Rxf6+ $2 Kg7 $19) 35... Bxf2 36. Kxf2 Rf4+ 37. Kg3 Rxf6 38. gxf6 $11) 34. gxf6 {[%emt 0:02:07]} (34. Na4 $17) 34... Rxg4 $19 {[%emt 0:00:20]} 35. Ne2 {[%emt 0:01:01]} Bxf6 {[%emt 0:02:13]} 36. Rc5 $2 {[%emt 0:01:21]} (36. Rc3) 36... Rh8 {[%emt 0:00:27] [#] Hoping for ...Rh1+.} 37. Ke1 {[%emt 0:00:24]} Ke7 {[%emt 0:03:18]} 38. Rf1 {[%emt 0:01:01]} Rh2 {[%emt 0:00:28]} 39. Rc2 {[%emt 0:00:36]} Re4 {[%emt 0:01:54]} 40. Kd1 {[%emt 0:00:27]} Bxd4 {[%emt 0:00:17]} 41. Ng3 {[%emt 0:30:37]} Rxc2 {[%emt 0:30:14]} 42. Kxc2 {[%emt 0:00:13]} Rg4 {[%emt 0:00:09]} 43. Nf5+ {[%emt 0:00:00]} Ke6 {[%emt 0:00:00]} 44. Nxd4+ {[%emt 0:00:00]} Rxd4 {[%emt 0:00:00]} 45. Rf8 {[%emt 0:00:00]} Kd6 {[%emt 0:00:00]} 46. Ra8 {[%emt 0:00:00]} b6 {[%emt 0:00:00] Weighted Error Value: White=0.25 (precise) /Black=0.11 (very precise)} 0-1

[Event "Summer Prague Open-A 2022"]
[Site "Prague"]
[Date "2022.08.06"]
[Round "2.7"]
[White "Kambrath, Yannick"]
[Black "Schuran, Werner"]
[Result "1-0"]
[ECO "E73"]
[WhiteElo "2401"]
[BlackElo "2097"]
[Annotator "TA"]
[PlyCount "65"]
[EventDate "2022.08.05"]
[EventType "swiss"]
[EventCountry "CZE"]
[SourceTitle "playchess.com"]
[Source "ChessBase"]
[SourceQuality "1"]
[TimeControl "40/5400+30:1800+30"]

{[%evp 11,65,44,40,44,47,37,52,33,74,64,79,70,87,69,87,80,105,61,96,87,90,91,102,96,127,117,164,152,188,151,173,151,152,102,111,100,84,81,254,193,198,189,220,223,512,486,944,1001,989,981,1368,1289,29982,29978,29983,5277]} 1. c4 {[%emt 0:01:13]} Nf6 {[%emt 0:00:13]} 2. Nc3 {[%emt 0:00:09]} g6 {[%emt 0:00:10]} 3. e4 {[%emt 0:00:43]} d6 {[%emt 0:00:18]} 4. d4 {[%emt 0:00:06]} Bg7 {[%emt 0:00:21]} 5. Be2 {[%emt 0:00:18]} O-O {[%emt 0:00:33]} 6. Bg5 {[%emt 0:00:15]} Re8 {[%emt 0:02:53]} 7. Nf3 {[%emt 0:00:30] E73: King's Indian: Averbakh Variation without 6...c5.} Bg4 {[%emt 0:01:12]} 8. O-O {[%emt 0:01:10]} Nbd7 {[%emt 0:01:45] [#]} 9. Rc1 $146 {[%emt 0:02:46] White is slightly better.} ({Predecessor:} 9. Qd2 Bxf3 10. Bxf3 e5 11. Bg4 exd4 12. Bxd7 dxc3 13. Qxc3 Nxd7 14. Bxd8 Bxc3 15. Bxc7 Bxb2 {0-1 (57) Kotarski,G (1478)-Grabarczyk,E (1400) Sokolka 2013}) 9... Bxf3 {[%emt 0:08:09]} 10. Bxf3 {[%emt 0:00:16]} ({Reject} 10. gxf3 e5 $11) 10... c6 {[%emt 0:00:08]} 11. a3 {[%emt 0:05:08]} Qc7 {[%emt 0:01:01]} 12. b4 {[%emt 0:03:47]} e5 {[%emt 0:01:22]} 13. d5 {[%emt 0:01:31]} c5 {[%emt 0:03:14]} 14. Na4 b6 {[%emt 0:09:15]} 15. Be3 {[%emt 0:08:41]} h5 {[%emt 0:04:31]} 16. h3 {[%emt 0:10:01]} Nf8 {[%emt 0:09:12]} 17. Nc3 {[%emt 0:05:49]} Kh7 {[%emt 0:08:25]} 18. Qd2 {[%emt 0:01:41]} Ng8 {[%emt 0:02:48]} (18... Qe7 $16) 19. g4 {[%emt 0:07:26]} h4 {[%emt 0:01:52]} 20. Bd1 {[%emt 0:00:19][%cal Bf3d1,Bd1a4,Ba4c6][%mdl 32]} f6 {[%emt 0:10:17]} 21. Ba4 {[%emt 0:04:48]} Re7 {[%emt 0:02:53]} 22. bxc5 {[%emt 0:04:52] White is more active.} (22. f4 $142) 22... bxc5 $16 {[%emt 0:00:27]} 23. Bc6 {[%emt 0:01:09] A strong pair of Bishops.} Rb8 {[%emt 0:01:39]} 24. Rb1 {[%emt 0:00:42]} f5 $2 {[%emt 0:03:21] [#] This costs Black the game.} (24... Rxb1 $16 {was worth a try.} 25. Rxb1 g5) 25. Rxb8 {[%emt 0:02:53]} Qxb8 {[%emt 0:00:06]} 26. Rb1 {[%emt 0:00:22]} Qc8 {[%emt 0:00:53]} 27. Bg5 {[%emt 0:03:36][%csl LRe7,LRh4]} fxg4 $2 {[%emt 0:02:22]} (27... Bh6 28. Bxh6 Nxh6) 28. Bxe7 $18 {[%emt 0:02:02]} gxh3 {[%emt 0:00:31]} (28... Nxe7 $142 29. Qg5 Qd8 30. Qxh4+ Kg8 31. Qxg4 Bf6) 29. Qg5 {[%emt 0:05:54]} Nxe7 {[%emt 0:02:01]} 30. Rb7 {[%emt 0:00:36]} ({Don't blunder} 30. Qxe7 $2 Qg4+ 31. Kf1 h2 32. Qxh4+ Qxh4 $19) 30... Nxc6 {[%emt 0:05:30]} 31. dxc6 {[%emt 0:00:16]} Ne6 {[%emt 0:03:10]} 32. Qxh4+ {[%emt 0:00:14]} Kg8 {[%emt 0:00:10]} 33. Nd5 {[%emt 0:00:15] Weighted Error Value: White=0.12 (very precise) /Black=0.72} 1-0

[Event "Summer Prague Open-A 2022"]
[Site "Prague"]
[Date "2022.08.06"]
[Round "2.8"]
[White "Jordanov, Mihail"]
[Black "Weishaeutel, Moritz"]
[Result "1/2-1/2"]
[ECO "B76"]
[WhiteElo "2158"]
[BlackElo "2400"]
[Annotator "TA"]
[PlyCount "119"]
[EventDate "2022.08.05"]
[EventType "swiss"]
[EventCountry "CZE"]
[SourceTitle "playchess.com"]
[Source "ChessBase"]
[SourceQuality "1"]
[TimeControl "40/5400+30:1800+30"]

{[%evp 29,119,40,27,-12,-5,-34,-19,-41,-29,-38,-31,-32,0,4,27,34,139,97,132,135,137,129,181,123,121,113,123,126,136,137,152,145,120,29,25,28,32,38,81,0,0,0,96,31,35,26,31,31,31,0,0,0,0,0,31,31,31,31,31,31,164,39,39,39,39,11,11,11,39,39,39,11,39,39,39,39,39,39,39,0,0,0,39,39,39,38,39,0,24,0,27,0]} 1. e4 {[%emt 0:00:03]} c5 {[%emt 0:00:05]} 2. Nf3 {[%emt 0:00:10]} d6 {[%emt 0:00:05]} 3. d4 {[%emt 0:00:12]} cxd4 {[%emt 0:00:04]} 4. Nxd4 {[%emt 0:00:10]} Nf6 {[%emt 0:00:06]} 5. Nc3 {[%emt 0:00:07]} g6 {[%emt 0:00:08]} 6. Be3 {[%emt 0:00:19]} Bg7 {[%emt 0:00:06]} 7. f3 {[%emt 0:00:15]} O-O {[%emt 0:00:07]} 8. Qd2 {[%emt 0:00:08]} Nc6 {[%emt 0:00:07]} 9. O-O-O {[%emt 0:00:16]} d5 {[%emt 0:00:09]} 10. Qe1 {[%emt 0:00:31]} e5 {[%emt 0:00:07]} 11. Nxc6 {[%emt 0:00:15]} bxc6 {[%emt 0:00:04]} 12. exd5 {[%emt 0:00:11]} Nxd5 {[%emt 0:00:07]} 13. Bc4 {[%emt 0:00:35]} Be6 {[%emt 0:00:10]} 14. Ne4 {[%emt 0:02:29]} Qc7 {[%emt 0:00:17]} 15. Bc5 {[%emt 0:01:33]} Rfd8 {[%emt 0:00:07] [#]} 16. g3 $146 {[%emt 0:12:19] B76: Sicilian Dragon: Yugoslav Attack, 9 g4 and 9 0-0-0.} ({Predecessor:} 16. Qh4 h6 17. g4 Nf4 18. Bxe6 Rxd1+ 19. Rxd1 Nxe6 20. Be3 Nf4 21. Nf6+ Bxf6 22. Qxf6 Re8 23. Qd6 Ne2+ 24. Kb1 {0-1 (49) Shahade,G (2476)-Jones,G (2677) Chess.com INT 2021}) 16... f5 {[%emt 0:04:15]} 17. Ng5 {[%emt 0:00:53]} Bc8 {[%emt 0:00:24]} 18. h4 {[%emt 0:09:48] The position is equal.} h6 {[%emt 0:01:21]} 19. Nh3 {[%emt 0:00:38]} Be6 {[%emt 0:02:41]} 20. Nf2 {[%emt 0:04:27]} Qf7 {[%emt 0:11:54]} 21. Qa5 {[%emt 0:11:53]} Rd7 {[%emt 0:05:39]} 22. Rhe1 {[%emt 0:05:04]} Rb7 {[%emt 0:16:48]} (22... Nf6 $14 23. Bxe6 Qxe6) 23. Bb3 {[%emt 0:23:08]} Nc7 {[%emt 0:17:22] [#]} 24. Bd6 $1 {[%emt 0:06:27] White is much more active.} Bxb3 {[%emt 0:02:01]} 25. axb3 {[%emt 0:00:27]} Ne6 {[%emt 0:01:46]} (25... Re8 $16 {keeps fighting.}) 26. Bxe5 {[%emt 0:01:40]} (26. Qa4 $18) 26... Rb5 $16 {[%emt 0:01:09]} 27. Qc3 {[%emt 0:01:21]} Rc5 {[%emt 0:00:20]} 28. Bxg7 {[%emt 0:00:51]} Rxc3 {[%emt 0:00:06]} 29. Bxc3 {[%emt 0:00:03]} c5 {[%emt 0:03:33][%cal Oe6d4]} 30. Nd3 {[%emt 0:02:18]} Rd8 {[%emt 0:01:50]} 31. Nxc5 {[%emt 0:00:43]} Rxd1+ $11 {[%emt 0:01:12]} 32. Rxd1 {[%emt 0:00:07] Strongly threatening Nd7.} Qe7 {[%emt 0:00:31]} (32... Nxc5 $2 33. Rd8+ Qf8 34. Rxf8+ Kxf8 35. Bb4 $18) 33. Nd7 {[%emt 0:01:11] And now Nf6+ would win.} Nf8 $1 {[%emt 0:03:36]} 34. Nf6+ {[%emt 0:10:22]} (34. Ne5 $16) 34... Kf7 {[%emt 0:00:05]} 35. Nd5 {[%emt 0:00:56]} Qb7 {[%emt 0:00:09]} (35... Qc5 $1 $11 {keeps the balance.}) 36. f4 {[%emt 0:02:47]} (36. b4 $16) 36... Nd7 $14 {[%emt 0:06:35]} 37. b4 {[%emt 0:00:47]} Nb6 {[%emt 0:00:42]} 38. Nxb6 {[%emt 0:01:12]} axb6 {[%emt 0:01:24][%mdl 4096] Endgame KQ-KRB} 39. Kb1 {[%emt 0:00:34]} Qg2 {[%emt 0:01:59]} 40. Rd7+ {[%emt 0:01:48]} Ke6 {[%emt 0:01:09]} 41. Rd3 {[%emt 0:30:42]} b5 {[%emt 0:31:18]} 42. b3 {[%emt 0:00:00]} Qf2 {[%emt 0:00:00]} 43. Be5 {[%emt 0:00:00]} Kf7 {[%emt 0:00:00]} 44. Kb2 {[%emt 0:00:00]} Ke7 {[%emt 0:00:00] [#]} (44... h5 $14) 45. Bd6+ {[%emt 0:00:00]} (45. Rd5 $1 $18 {[%cal Rd5b5]}) 45... Kf6 {[%emt 0:00:00]} 46. Bc5 {[%emt 0:00:00]} Qg2 {[%emt 0:00:00]} 47. Rd6+ {[%emt 0:00:00]} Kf7 {[%emt 0:00:00]} 48. Rd7+ {[%emt 0:00:00]} Kg8 {[%emt 0:00:00]} (48... Ke6 $5 {[%cal Re6d7]} 49. Rd3 Kf7 $14) 49. Rd3 {[%emt 0:00:00]} Kf7 {[%emt 0:00:00]} 50. Re3 {[%emt 0:00:00]} Kf6 {[%emt 0:00:57]} 51. Bd4+ {[%emt 0:00:00]} Kf7 {[%emt 0:00:45]} 52. Be5 {[%emt 0:00:00]} Qd2 {[%emt 0:03:45]} 53. Rd3 {[%emt 0:00:00]} Qg2 {[%emt 0:01:20]} 54. Rd7+ {[%emt 0:00:00]} Ke8 {[%emt 0:02:46]} 55. Rd3 {[%emt 0:00:45]} Kf7 {[%emt 0:00:29]} 56. Rc3 {[%emt 0:01:37]} Qf2 {[%emt 0:01:03]} 57. Rc7+ {[%emt 0:01:27]} Ke8 $1 {[%emt 0:00:17]} 58. Rc3 {[%emt 0:02:39]} Kf7 {[%emt 0:00:11]} 59. Rc7+ {[%emt 0:01:03]} Ke8 $1 {[%emt 0:00:06]} 60. Rc3 {[%emt 0:00:05] Black defended with fortune.  Weighted Error Value: White=0.21 (precise) /Black=0.19 (very precise)} 1/2-1/2